fUSD/lending_fUSD_20250804
["ID","MTS","AMOUNT","RATE_DAILY","PERIOD"]
[377281701,1754317842755,-404.6,0.000467,120]
[377281703,1754317842766,-449.22,0.000467,120]
[377281705,1754317842776,-1000.0,0.00046721,10]
[377281707,1754317842786,-1313.72112197,0.000468,120]
[377281709,1754317842796,-363.86271134,0.000468,120]
[377281711,1754317842805,-404.6,0.000468,120]
[377281713,1754317842815,-449.22,0.000468,120]
[377281715,1754317842826,-250.0,0.00046849,2]
[377281717,1754317842835,-151.0,0.00046871,14]
[377281719,1754317842845,-151.0,0.00046871,14]
[377281721,1754317842854,-515.778822,0.00046871,14]
[377281723,1754317842864,-515.778822,0.00046871,14]
[377281725,1754317842874,-19631.11574,0.00046883,3]
[377281727,1754317842884,-564.0,0.00046893,2]
[377281729,1754317842894,-2023.0,0.00046893,2]
[377281731,1754317842904,-958.0,0.00046893,2]
[377281733,1754317842914,-597.0,0.00046893,2]
[377281735,1754317842924,-1292.0,0.00046893,2]
[377281737,1754317842935,-1651.0,0.00046893,2]
[377281739,1754317842944,-784.994,0.00046893,2]
[377281741,1754317842954,-1251.0,0.00046893,2]
[377281743,1754317842963,-809.0,0.00046893,2]
[377281745,1754317842973,-404.6,0.000469,120]
[377281747,1754317842983,-449.22,0.000469,120]
[377281749,1754317842992,-508.0,0.00046923,10]
[377281751,1754317843002,-500.92915465,0.00046973,10]
[377281753,1754317843013,-607.50648958,0.00046973,10]
[377281755,1754317843023,-165.78052865,0.00046973,10]
[377281757,1754317843033,-500.0,0.00046973,10]
[377281759,1754317843043,-19631.11574,0.0004699,3]
[377281761,1754317843052,-19631.11574,0.00046994,3]
[377281763,1754317843062,-999.0,0.00046999,120]
[377281765,1754317843071,-50000.0,0.00047,47]
[377281768,1754317843081,-151.0,0.00047,14]
[377281770,1754317843091,-1070.203621,0.00047,14]
[377281772,1754317843100,-1070.203621,0.00047,14]
[377281774,1754317843111,-859.346907,0.00047,14]
[377281776,1754317843120,-153.877785,0.00047,14]
[377281778,1754317843130,-151.0,0.00047,14]
[377281780,1754317843139,-248.177429,0.00047,14]
[377281782,1754317843149,-151.0,0.00047,14]
[377281785,1754317843160,-151.0,0.00047,14]
[377281787,1754317843170,-151.0,0.00047,14]
[377281789,1754317843180,-355.111849,0.00047,14]
[377281791,1754317843190,-355.111849,0.00047,14]
[377281793,1754317843200,-151.0,0.00047,14]
[377281795,1754317843210,-151.0,0.00047,14]
[377281797,1754317843219,-151.0,0.00047,14]
[377281799,1754317843229,-151.0,0.00047,14]
[377281801,1754317843239,-151.0,0.00047,14]
[377281804,1754317843249,-196.495079,0.00047,14]
[377281806,1754317843261,-196.495079,0.00047,14]
[377281808,1754317843271,-515.778822,0.00047,14]
[377281810,1754317843281,-151.0,0.00047,14]
[377281813,1754317843291,-515.778822,0.00047,14]
[377281815,1754317843301,-593.72306,0.00047,14]
[377281817,1754317843310,-593.72306,0.00047,14]
[377281819,1754317843319,-157.581139,0.00047,14]
[377281821,1754317843329,-157.581139,0.00047,14]
[377281823,1754317843338,-151.0,0.00047,14]
[377281825,1754317843348,-1161.09324078,0.00047003,55]
[377281828,1754317843359,-235.4,0.00047038,120]
[377281830,1754317843369,-150.0,0.00047045,2]
[377281832,1754317843379,-888.0,0.0004708,3]
[377281835,1754317843388,-535.14847005,0.00047206,2]
[377281837,1754317843398,-1500.0,0.00047268,10]
[377281839,1754317843407,-254.71234876,0.00047292,120]
[377281841,1754317843416,-682.05197163,0.00047366,2]
[377281843,1754317843426,-888.0,0.00047371,14]
[377281845,1754317843436,-1161.09324078,0.00047383,56]
[377281847,1754317843445,-888.0,0.000475,14]
[377281849,1754317843455,-500.0,0.000475,17]
[377281851,1754317843466,-1000.0,0.00047521,10]
[377281853,1754317843478,-828.95547321,0.00047527,2]
[377281855,1754317843488,-888.0,0.00047556,3]
[377281857,1754317843498,-800.0,0.000476,17]
[377281859,1754317843508,-508.0,0.00047611,10]
[377281861,1754317843518,-427.06504696,0.00047673,15]
[377281863,1754317843528,-975.85897479,0.00047687,2]
[377281865,1754317843538,-1100.0,0.000477,17]
[377281867,1754317843548,-150.0,0.00047719,2]
[377281869,1754317843557,-1161.09324078,0.00047762,57]
[377281871,1754317843567,-1400.0,0.000478,17]
[377281873,1754317843577,-3287.16,0.000478,14]
[377281875,1754317843587,-1019.35412072,0.00047816,10]
[377281877,1754317843597,-1277.98911111,0.00047844,15]
[377281879,1754317843607,-1122.76247637,0.00047848,2]
[377281881,1754317843617,-787.44291558,0.0004788,100]
[377281883,1754317843627,-12777.4896161,0.0004788,3]
[377281885,1754317843636,-151.18,0.0004788,2]
[377281887,1754317843647,-10000.0,0.00047888,120]
[377281889,1754317843657,-58893.3472199,0.0004789,4]
[377281891,1754317843667,-51109.9584645,0.0004789,3]
[377281893,1754317843677,-169.23744463,0.0004789,120]
[377281895,1754317843687,-5000.0,0.0004789,120]
[377281897,1754317843698,-88888.0,0.000479,120]
[377281899,1754317843709,-200.0,0.000479,17]
[377281901,1754317843720,-207.68,0.000479,30]
[377281903,1754317843731,-12777.4896161,0.00047969,4]
[377281905,1754317843743,-1100.0,0.0004797,3]
[377281907,1754317843754,-150.5,0.0004797,120]
[377281910,1754317843774,-25554.9792323,0.0004797,4]
[377281913,1754317843785,-150.0,0.00047973,3]
[377281916,1754317843797,-150.0,0.00047973,10]
[377281919,1754317843808,-220.37995172,0.00047973,10]
[377281922,1754317843820,-19631.11574,0.00047979,4]
[377281924,1754317843831,-150.5,0.0004798,120]
[377281926,1754317843842,-58893.3472199,0.0004798,4]
[377281928,1754317843852,-51109.9584645,0.0004798,4]
[377281930,1754317843863,-12777.4896161,0.00047988,4]
[377281932,1754317843874,-117786.69444,0.0004799,4]
[377281934,1754317843886,-150.5,0.0004799,120]
[377281936,1754317843897,-127774.896161,0.0004799,4]
[377281939,1754317843909,-19631.11574,0.00047998,4]
[377281942,1754317843919,-175.0,0.00047998,120]
[377281946,1754317843930,-888.0,0.00047999,14]
[377281949,1754317843941,-50000.0,0.00048,48]
[377281952,1754317843951,-151.0,0.00048,14]
[377281955,1754317843961,-151.0,0.00048,14]
[377281958,1754317843971,-400.0,0.00048,120]
[377281961,1754317843982,-1070.203621,0.00048,14]
[377281963,1754317843992,-1070.203621,0.00048,14]
[377281965,1754317844003,-1070.203621,0.00048,14]
[377281967,1754317844017,-1070.203621,0.00048,14]
[377281969,1754317844026,-859.346907,0.00048,14]
[377281971,1754317844036,-859.346907,0.00048,14]
[377281973,1754317844045,-151.0,0.00048,14]
[377281975,1754317844055,-151.0,0.00048,14]
[377281977,1754317844064,-151.0,0.00048,14]
[377281979,1754317844074,-156.868073,0.00048,14]
[377281981,1754317844084,-618.58,0.00048,2]
[377281983,1754317844093,-151.0,0.00048,14]
[377281985,1754317844103,-151.0,0.00048,14]
[377281987,1754317844112,-355.111849,0.00048,14]
[377281989,1754317844122,-355.111849,0.00048,14]
[377281991,1754317844132,-1500.0,0.00048,120]
[377281993,1754317844142,-151.0,0.00048,14]
[377281995,1754317844151,-151.0,0.00048,14]
[377281997,1754317844161,-151.0,0.00048,14]
[377281999,1754317844170,-176.433134,0.00048,14]
[377282001,1754317844180,-151.0,0.00048,14]
[377282004,1754317844190,-151.0,0.00048,14]
[377282006,1754317844199,-151.0,0.00048,14]
[377282008,1754317844208,-151.0,0.00048,14]
[377282010,1754317844218,-247.331557,0.00048,14]
[377282012,1754317844228,-196.495079,0.00048,14]
[377282014,1754317844237,-196.495079,0.00048,14]
[377282016,1754317844247,-196.495079,0.00048,14]
[377282018,1754317844257,-196.495079,0.00048,14]
[377282020,1754317844271,-515.778822,0.00048,14]
[377282022,1754317844280,-515.778822,0.00048,14]
[377282036,1754317844400,-151.0,0.00048,14]
[377282038,1754317844410,-151.0,0.00048,14]
[377282040,1754317844420,-515.778822,0.00048,14]
[377282042,1754317844430,-515.778822,0.00048,14]
[377282044,1754317844439,-593.72306,0.00048,14]
[377282046,1754317844448,-593.72306,0.00048,14]
[377282048,1754317844457,-593.72306,0.00048,14]
[377282050,1754317844468,-593.72306,0.00048,14]
[377282052,1754317844481,-176707.74873779,0.00048,120]
[377282124,1754317845320,-2029.97926503,0.00048,120]
[377282216,1754317846281,-3302.30699718,0.00048,120]
[377282218,1754317846290,-157.581139,0.00048,14]
[377282220,1754317846300,-157.581139,0.00048,14]
[377282222,1754317846309,-157.581139,0.00048,14]
[377282224,1754317846319,-157.581139,0.00048,14]
[377282226,1754317846329,-151.0,0.00048,14]
[377282228,1754317846339,-151.0,0.00048,14]
[377282230,1754317846349,-2007.6,0.00048,120]
[377282232,1754317846359,-1000.0,0.00048,120]
[377282234,1754317846368,-1000.0,0.00048,120]
[377282236,1754317846378,-439.0,0.00048,90]
[377282238,1754317846388,-329.0,0.00048,90]
[377282240,1754317846398,-694.259999,0.00048,120]
[377282242,1754317846408,-1269.66597795,0.00048008,2]
[377282244,1754317846418,-1903.81268,0.0004801,40]
[377282246,1754317846427,-888.0,0.00048027,3]
[377282248,1754317846438,-2964.27978987,0.00048029,4]
[377282254,1754317846491,-324.7149346,0.00048029,4]
[377282257,1754317846506,-3840.55169981,0.00048029,4]
[377282259,1754317846522,-440.6825484,0.00048029,4]
[377282267,1754317846600,-968.36250529,0.00048029,4]
[377282385,1754317847872,-5433.98261363,0.0003868,2]
[377282386,1754317847883,-888.0,0.000471,120]
[377282387,1754317847892,-1007.17374213,0.00048029,4]
[377282388,1754317847905,-1666.6000002,0.00048029,4]
[377282389,1754317847916,-1565.1243958,0.00048029,4]
[377282391,1754317847926,-600.0,0.00048039,18]
[377282393,1754317847936,-600.0,0.00048039,18]
[377282395,1754317847946,-600.0,0.00048039,18]
[377282397,1754317847955,-600.0,0.00048039,18]
[377282399,1754317847966,-600.0,0.00048039,18]
[377282401,1754317847976,-600.0,0.00048039,18]
[377282403,1754317847987,-600.0,0.00048039,18]
[377282405,1754317847996,-600.0,0.00048039,18]
[377282407,1754317848006,-600.0,0.00048039,18]
[377282409,1754317848018,-600.0,0.00048039,18]
[377282411,1754317848029,-600.0,0.00048039,38]
[377282413,1754317848038,-1383.0685923,0.00048068,10]
[377282415,1754317848048,-434.62,0.00048089,120]
[377282417,1754317848058,-9842.3138779,0.0004809,4]
[377282504,1754317849483,-1677.0,0.00038186,2]
[377282505,1754317849493,-5433.98261363,0.00039895,2]
[377282506,1754317849503,-6070.0,0.00046315,2]
[377282507,1754317849515,-2935.1757382,0.0004809,4]
[377282508,1754317849525,-27903.50208923,0.000481,120]
[377282509,1754317849535,-1161.09324078,0.00048141,57]
[377282510,1754317849545,-1416.56947954,0.00048169,2]
[377282511,1754317849556,-799.88154285,0.000482,31]
[377282512,1754317849566,-12777.4896161,0.00048211,4]
[377282513,1754317849575,-19631.11574,0.00048222,4]
[377282514,1754317849585,-12777.4896161,0.00048237,4]
[377282515,1754317849595,-10000.0,0.0004824,120]
[377282516,1754317849604,-7662.05045708,0.00048241,120]
[377282517,1754317849614,-19631.11574,0.00048247,4]
[377282518,1754317849623,-12777.4896161,0.00048247,4]
[377282519,1754317849633,-1000.0,0.00048257,2]
[377282520,1754317849643,-1094.8994,0.00048257,2]
[377282521,1754317849653,-1000.0,0.00048257,2]
[377282522,1754317849662,-1000.0,0.00048257,2]
[377282523,1754317849672,-1000.0,0.00048257,2]
[377282524,1754317849681,-1000.0,0.00048257,2]
[377282525,1754317849691,-1000.0,0.00048257,2]
[377282526,1754317849700,-1000.0,0.00048257,2]
[377282528,1754317849709,-1000.0,0.00048257,2]
[377282529,1754317849718,-1000.0,0.00048257,2]
[377282530,1754317849728,-1000.0,0.00048257,2]
[377282531,1754317849737,-1000.0,0.00048257,2]
[377282533,1754317849747,-1000.0,0.00048257,2]
[377282534,1754317849756,-1000.0,0.00048257,2]
[377282535,1754317849766,-1000.0,0.00048257,2]
[377282537,1754317849775,-1000.0,0.00048257,2]
[377282538,1754317849785,-1000.0,0.00048257,2]
[377282539,1754317849794,-1000.0,0.00048257,2]
[377282541,1754317849803,-1000.0,0.00048257,2]
[377282542,1754317849813,-1000.0,0.00048257,2]
[377282543,1754317849823,-1126.3912,0.00048257,2]
[377282544,1754317849833,-508.0,0.00048299,13]
[377282546,1754317849843,-1563.47298112,0.00048329,2]
[377282547,1754317849852,-439.0,0.00048356,90]
[377282548,1754317849862,-329.0,0.00048356,90]
[377282550,1754317849871,-12777.4896161,0.0004836,4]
[377282551,1754317849881,-19631.11574,0.0004837,4]
[377282552,1754317849891,-12777.4896161,0.0004837,4]
[377282554,1754317849900,-19631.11574,0.0004838,4]
[377282555,1754317849910,-2460.6579,0.000484,2]
[377282556,1754317849919,-76787.47166443,0.000484,2]
[377282557,1754317849931,-70537.25883557,0.000484,2]
[377282558,1754317849940,-1000.0,0.000484,2]
[377282559,1754317849950,-4102.6754,0.000484,2]
[377282561,1754317849960,-158.0979717,0.000484,120]
[377282562,1754317849969,-1277.98911111,0.000484,15]
[377282563,1754317849979,-320.19403988,0.000484,2]
[377282565,1754317849988,-7345.91725939,0.000484,2]
[377282566,1754317849998,-3468.4563747,0.000484,2]
[377282567,1754317850007,-151.0,0.00048467,14]
[377282569,1754317850017,-1070.203621,0.00048467,14]
[377282570,1754317850026,-1070.203621,0.00048467,14]
[377282571,1754317850036,-859.346907,0.00048467,14]
[377282573,1754317850045,-151.0,0.00048467,14]
[377282574,1754317850054,-151.0,0.00048467,14]
[377282575,1754317850064,-355.111849,0.00048467,14]
[377282577,1754317850073,-355.111849,0.00048467,14]
[377282578,1754317850083,-198.926374,0.00048467,14]
[377282579,1754317850092,-151.0,0.00048467,14]
[377282581,1754317850102,-151.0,0.00048467,14]
[377282582,1754317850111,-196.495079,0.00048467,14]
[377282583,1754317850120,-196.495079,0.00048467,14]
[377282585,1754317850129,-515.778822,0.00048467,14]
[377282586,1754317850139,-151.0,0.00048467,14]
[377282587,1754317850148,-515.778822,0.00048467,14]
[377282589,1754317850158,-593.72306,0.00048467,14]
[377282590,1754317850168,-593.72306,0.00048467,14]
[377282591,1754317850177,-157.581139,0.00048467,14]
[377282593,1754317850187,-157.581139,0.00048467,14]
[377282594,1754317850196,-151.0,0.00048467,14]
[377282595,1754317850206,-700.0,0.0004847,3]
[377282597,1754317850215,-700.0,0.0004847,3]
[377282598,1754317850224,-500.0,0.00048473,10]
[377282599,1754317850233,-888.0,0.00048479,3]
[377282600,1754317850243,-199.0,0.00048489,30]
[377282601,1754317850252,-1710.3764827,0.0004849,2]
[377282602,1754317850262,-218.49445257,0.0004849,7]
[377282603,1754317850271,-312.01142982,0.00048499,30]
[377282604,1754317850280,-300.0,0.00048499,30]
[377282605,1754317850290,-1000.0,0.00048499,2]
[377282606,1754317850299,-150.0,0.00048499,120]
[377282607,1754317850308,-185.58,0.00048499,120]
[377282608,1754317850317,-151.0,0.00048499,120]
[377282609,1754317850327,-151.0,0.00048499,120]
[377282610,1754317850336,-151.0,0.00048499,120]
[377282611,1754317850346,-151.0,0.00048499,120]
[377282612,1754317850355,-151.0,0.00048499,120]
[377282614,1754317850365,-151.0,0.00048499,120]
[377282615,1754317850374,-151.0,0.00048499,120]
[377282616,1754317850383,-151.0,0.00048499,120]
[377282617,1754317850394,-151.0,0.00048499,120]
[377282619,1754317850403,-192.11228027,0.00048499,30]
[377282620,1754317850413,-500.0,0.00048499,120]
[377282621,1754317850422,-500.0,0.00048499,120]
[377282623,1754317850432,-500.0,0.00048499,120]
[377282624,1754317850441,-500.0,0.00048499,120]
[377282625,1754317850451,-500.0,0.00048499,120]
[377282627,1754317850461,-500.0,0.00048499,120]
[377282628,1754317850472,-500.0,0.00048499,120]
[377282629,1754317850482,-500.0,0.00048499,120]
[377282630,1754317850493,-500.0,0.00048499,120]
[377282632,1754317850502,-500.0,0.00048499,120]
[377282633,1754317850513,-500.0,0.00048499,120]
[377282634,1754317850523,-500.0,0.00048499,120]
[377282636,1754317850533,-500.0,0.00048499,120]
[377282637,1754317850547,-500.0,0.00048499,120]
[377282638,1754317850557,-500.0,0.00048499,120]
[377282639,1754317850567,-300.0,0.00048499,120]
[377282640,1754317850577,-311.1,0.00048499,120]
[377282641,1754317850587,-322.6107,0.00048499,120]
[377282642,1754317850596,-500.0,0.00048499,120]
[377282643,1754317850606,-334.5472959,0.00048499,120]
[377282644,1754317850616,-500.0,0.00048499,120]
[377282645,1754317850626,-346.92554585,0.00048499,120]
[377282646,1754317850636,-500.0,0.00048499,120]
[377282647,1754317850645,-359.76179104,0.00048499,120]
[377282648,1754317850656,-500.0,0.00048499,120]
[377282649,1754317850665,-373.07297731,0.00048499,120]
[377282650,1754317850675,-500.0,0.00048499,120]
[377282652,1754317850684,-386.87667747,0.00048499,120]
[377282654,1754317850694,-500.0,0.00048499,120]
[377282656,1754317850703,-401.19111454,0.00048499,120]
[377282658,1754317850713,-500.0,0.00048499,120]
[377282660,1754317850722,-416.03518578,0.00048499,120]
[377282662,1754317850731,-500.0,0.00048499,120]
[377282664,1754317850740,-431.42848765,0.00048499,120]
[377282666,1754317850749,-500.0,0.00048499,120]
[377282668,1754317850759,-447.3913417,0.00048499,120]
[377282670,1754317850770,-500.0,0.00048499,120]
[377282672,1754317850779,-239.78704953,0.00048499,120]
[377282673,1754317850788,-500.0,0.00048499,120]
[377282675,1754317850798,-500.0,0.00048499,120]
[377282678,1754317850807,-500.0,0.00048499,120]
[377282679,1754317850817,-500.0,0.00048499,120]
[377282682,1754317850827,-500.0,0.00048499,120]
[377282684,1754317850836,-500.0,0.00048499,120]
[377282686,1754317850846,-500.0,0.00048499,120]
[377282688,1754317850856,-500.0,0.00048499,120]
[377282690,1754317850867,-300.0,0.00048499,120]
[377282691,1754317850881,-500.0,0.00048499,120]
[377282693,1754317850891,-300.0,0.00048499,120]
[377282695,1754317850900,-500.0,0.00048499,120]
[377282697,1754317850910,-300.0,0.00048499,120]
[377282700,1754317850920,-500.0,0.00048499,120]
[377282701,1754317850930,-300.0,0.00048499,120]
[377282704,1754317850939,-500.0,0.00048499,120]
[377282706,1754317850948,-300.0,0.00048499,120]
[377282708,1754317850958,-500.0,0.00048499,120]
[377282710,1754317850968,-300.0,0.00048499,120]
[377282712,1754317850977,-200.0,0.00048499,120]
[377282714,1754317850987,-207.4,0.00048499,120]
[377282716,1754317850996,-300.0,0.00048499,120]
[377282718,1754317851005,-215.0738,0.00048499,120]
[377282720,1754317851015,-300.0,0.00048499,120]
[377282722,1754317851024,-223.0315306,0.00048499,120]
[377282723,1754317851033,-300.0,0.00048499,120]
[377282725,1754317851043,-231.28369723,0.00048499,120]
[377282728,1754317851052,-239.84119403,0.00048499,120]
[377282730,1754317851061,-248.71531821,0.00048499,120]
[377282731,1754317851071,-257.91778498,0.00048499,120]
[377282732,1754317851080,-267.46074303,0.00048499,120]
[377282733,1754317851090,-277.35679052,0.00048499,120]
[377282734,1754317851099,-287.61899177,0.00048499,120]
[377282735,1754317851108,-159.81743356,0.00048499,120]
[377282736,1754317851117,-300.0,0.00048499,120]
[377282737,1754317851127,-300.0,0.00048499,120]
[377282738,1754317851136,-300.0,0.00048499,120]
[377282739,1754317851145,-300.0,0.00048499,120]
[377282740,1754317851155,-300.0,0.00048499,120]
[377282741,1754317851164,-300.0,0.00048499,120]
[377282742,1754317851174,-300.0,0.00048499,120]
[377282743,1754317851183,-300.0,0.00048499,120]
[377282744,1754317851193,-300.0,0.00048499,120]
[377282745,1754317851203,-300.0,0.00048499,120]
[377282746,1754317851213,-300.0,0.00048499,120]
[377282747,1754317851222,-200.0,0.00048499,120]
[377282748,1754317851231,-151.0,0.00048499,120]
[377282749,1754317851241,-151.0,0.00048499,120]
[377282750,1754317851250,-500.0,0.00048499,120]
[377282751,1754317851260,-151.0,0.00048499,120]
[377282752,1754317851271,-500.0,0.00048499,120]
[377282753,1754317851280,-151.0,0.00048499,120]
[377282754,1754317851290,-500.0,0.00048499,120]
[377282755,1754317851301,-151.0,0.00048499,120]
[377282756,1754317851310,-500.0,0.00048499,120]
[377282757,1754317851319,-160.0,0.00048499,120]
[377282758,1754317851328,-151.0,0.00048499,120]
[377282759,1754317851338,-500.0,0.00048499,120]
[377282760,1754317851348,-160.0,0.00048499,120]
[377282761,1754317851357,-151.0,0.00048499,120]
[377282762,1754317851367,-500.0,0.00048499,120]
[377282763,1754317851376,-160.0,0.00048499,120]
[377282764,1754317851386,-151.0,0.00048499,120]
[377282765,1754317851396,-500.0,0.00048499,120]
[377282766,1754317851406,-160.0,0.00048499,120]
[377282767,1754317851415,-151.0,0.00048499,120]
[377282768,1754317851425,-500.0,0.00048499,120]
[377282769,1754317851434,-500.0,0.00048499,120]
[377282770,1754317851444,-160.0,0.00048499,120]
[377282771,1754317851453,-151.0,0.00048499,120]
[377282772,1754317851466,-160.0,0.00048499,120]
[377282773,1754317851477,-151.0,0.00048499,120]
[377282774,1754317851486,-160.0,0.00048499,120]
[377282775,1754317851496,-151.0,0.00048499,120]
[377282776,1754317851507,-160.0,0.00048499,120]
[377282777,1754317851517,-160.0,0.00048499,120]
[377282778,1754317851526,-151.0,0.00048499,120]
[377282779,1754317851536,-151.0,0.00048499,120]
[377282780,1754317851546,-151.0,0.00048499,120]
[377282781,1754317851557,-151.0,0.00048499,120]
[377282782,1754317851567,-151.0,0.00048499,120]
[377282783,1754317851576,-600.0,0.00048499,120]
[377282784,1754317851586,-500.0,0.00048499,120]
[377282785,1754317851596,-600.0,0.00048499,120]
[377282786,1754317851606,-526.22250005,0.00048499,120]
[377282787,1754317851618,-600.0,0.00048499,120]
[377282788,1754317851628,-500.0,0.00048499,120]
[377282789,1754317851637,-500.0,0.00048499,120]
[377282790,1754317851647,-600.0,0.00048499,120]
[377282791,1754317851656,-0.15411828,0.00048499,120]
[377282792,1754317851700,-150.84588172,0.00048499,120]
[377282793,1754317851710,-500.0,0.00048499,120]
[377282794,1754317851719,-500.0,0.00048499,120]
[377282795,1754317851729,-600.0,0.00048499,120]
[377282796,1754317851739,-500.0,0.00048499,120]
[377282797,1754317851749,-600.0,0.00048499,120]
[377282798,1754317851758,-500.0,0.00048499,120]
[377282799,1754317851768,-600.0,0.00048499,120]
[377282800,1754317851777,-500.0,0.00048499,120]
[377282801,1754317851787,-600.0,0.00048499,120]
[377282802,1754317851796,-500.0,0.00048499,120]
[377282803,1754317851806,-600.0,0.00048499,120]
[377282804,1754317851815,-500.0,0.00048499,120]
[377282805,1754317851824,-151.0,0.00048499,120]
[377282806,1754317851833,-600.0,0.00048499,120]
[377282807,1754317851842,-151.0,0.00048499,120]
[377282808,1754317851852,-156.587,0.00048499,120]
[377282809,1754317851861,-586.00997006,0.00048499,120]
[377282810,1754317851871,-151.0,0.00048499,120]
[377282811,1754317851880,-162.380719,0.00048499,120]
[377282812,1754317851900,-151.0,0.00048499,120]
[377282813,1754317851911,-168.3888056,0.00048499,120]
[377282814,1754317851920,-151.0,0.00048499,120]
[377282815,1754317851930,-174.61919141,0.00048499,120]
[377282816,1754317851939,-151.0,0.00048499,120]
[377282817,1754317851949,-181.08010149,0.00048499,120]
[377282818,1754317851958,-151.0,0.00048499,120]
[377282819,1754317851968,-151.0,0.00048499,120]
[377282820,1754317851977,-3888.0,0.00048499,120]
[377282821,1754317851987,-171.2514499,0.00048499,120]
[377282822,1754317851997,-151.0,0.00048499,120]
[377282823,1754317852006,-4031.856,0.00048499,120]
[377282824,1754317852016,-187.78006525,0.00048499,120]
[377282825,1754317852025,-4181.034672,0.00048499,120]
[377282826,1754317852035,-194.72792766,0.00048499,120]
[377282827,1754317852044,-202.6771522,0.00048499,120]
[377282828,1754317852054,-4335.73295486,0.00048499,120]
[377282829,1754317852064,-2282.29450657,0.00048499,120]
[377282830,1754317852074,-151.0,0.00048499,120]
[377282831,1754317852084,-151.0,0.00048499,120]
[377282832,1754317852093,-151.0,0.00048499,120]
[377282833,1754317852102,-151.0,0.00048499,120]
[377282834,1754317852112,-151.0,0.00048499,120]
[377282835,1754317852121,-151.0,0.00048499,120]
[377282836,1754317852131,-151.0,0.00048499,120]
[377282837,1754317852141,-151.0,0.00048499,120]
[377282838,1754317852150,-157.55548253,0.00048499,120]
[377282839,1754317852160,-151.0,0.00048499,120]
[377282840,1754317852169,-300.0,0.00048499,120]
[377282841,1754317852178,-151.0,0.00048499,120]
[377282842,1754317852188,-151.0,0.00048499,120]
[377282843,1754317852197,-151.0,0.00048499,120]
[377282844,1754317852206,-300.0,0.00048499,120]
[377282845,1754317852216,-151.0,0.00048499,120]
[377282846,1754317852225,-151.0,0.00048499,120]
[377282847,1754317852235,-300.0,0.00048499,120]
[377282848,1754317852245,-151.0,0.00048499,120]
[377282849,1754317852254,-151.0,0.00048499,120]
[377282850,1754317852263,-151.0,0.00048499,120]
[377282851,1754317852275,-151.0,0.00048499,120]
[377282852,1754317852284,-300.0,0.00048499,120]
[377282853,1754317852294,-151.0,0.00048499,120]
[377282854,1754317852304,-151.0,0.00048499,120]
[377282855,1754317852313,-300.0,0.00048499,120]
[377282856,1754317852323,-151.0,0.00048499,120]
[377282865,1754317852618,-151.0,0.00048499,120]
[377282866,1754317852628,-300.0,0.00048499,120]
[377282867,1754317852638,-151.0,0.00048499,120]
[377282868,1754317852647,-291.51788521,0.00048499,120]
[377282869,1754317852658,-300.0,0.00048499,120]
[377282870,1754317852668,-151.0,0.00048499,120]
[377282871,1754317852677,-300.0,0.00048499,120]
[377282872,1754317852687,-151.0,0.00048499,120]
[377282873,1754317852696,-11201.78257871,0.000485,61]